bitfinex-derivatives/quotes_ETHF0:USTF0_20250616
["timestamp","ask_amount","ask_price","bid_price","bid_amount"]
[1750082558466,25.939,2643.2,2643.1,1.98124]
[1750082558673,25.939,2643.2,2643.1,1.2247]
[1750082558870,25.903,2643.2,2643.1,1.98122]
[1750082559059,0.75637,2643.7,2643.1,1.2247]
[1750082559260,3.2078,2643.9,2643.5,3.2078]
[1750082559464,1.89065,2644.1,2643.5,3.2078]
[1750082559673,0.75638,2643.7,2643.5,3.21347537]
[1750082559873,25.896,2644.0,2643.5,3.21347537]
[1750082560072,0.7564,2643.6,2643.5,0.00567537]
[1750082560263,26.6414,2643.6,2643.5,0.00567537]
[1750082560567,26.6344,2643.6,2643.5,0.00567537]
[1750082560969,27.9054,2643.6,2643.5,0.00567537]
[1750082561169,0.75646,2643.4,2643.1,0.75652]
[1750082561374,0.75644,2643.5,2643.2,0.75651]
[1750082561563,0.75641,2643.6,2643.3,0.75646]
[1750082561767,0.7564,2643.6,2643.4,0.75643]
[1750082561975,0.75648,2643.3,2643.2,3.2078]
[1750082562177,25.848,2643.4,2643.2,3.2078]
[1750082562571,25.848,2643.4,2643.3,0.75648]
[1750082562768,0.00563844,2643.5,2643.4,0.75646]
[1750082562769,25.84263844,2643.5,2643.4,0.75646]
[1750082563168,0.00563844,2643.5,2643.4,0.75646]
[1750082563665,0.00563844,2643.5,2643.4,1.26334862]
[1750082564268,10.9398,2644.3,2644.1,0.75625]
[1750082564473,37.49401,2644.3,2644.0,0.75627]
[1750082564671,37.49401,2644.3,2644.1,0.50806851]
[1750082564871,37.49401,2644.3,2644.2,0.50805988]
[1750082565173,1.89025,2644.7,2644.2,3.2078]
[1750082565174,25.783,2644.7,2644.2,3.2078]
[1750082565369,25.783,2644.7,2644.3,1.284]
[1750082565668,25.783,2644.7,2644.2,3.2078]
[1750082565669,1.89043,2644.4,2643.7,3.2078]
[1750082565979,25.812,2644.4,2644.3,3.964]
[1750082566169,7.732,2644.7,2644.6,0.7561]
[1750082566371,7.732,2644.8,2644.7,0.75608]
[1750082566565,33.537,2644.8,2644.7,0.75608]
[1750082566775,33.537,2644.8,2644.6,3.2078]
[1750082567077,0.75608,2644.7,2644.6,3.2078]
[1750082567469,25.8,2644.8,2644.4,0.00567537]
[1750082567470,0.75614,2644.5,2644.4,0.00567537]
[1750082567667,0.75614,2644.5,2644.4,0.51276274]
[1750082567875,10.51268207,2644.5,2644.4,0.51278181]
[1750082568074,10.51268207,2644.5,2644.4,0.00567537]
[1750082568274,1.89048,2644.4,2643.3,4.4879]
[1750082568581,36.74113,2644.3,2643.8,0.75633]
[1750082568768,3.2078,2644.3,2643.9,0.50369412]
[1750082568970,0.75629,2644.0,2643.7,3.2078]
[1750082569169,0.75632,2643.9,2643.7,3.96415]
[1750082569366,25.776,2643.8,2643.6,0.00567537]
[1750082569575,26.53235,2643.8,2643.7,0.50379899]
[1750082569872,0.75637,2643.7,2643.6,0.00567537]
[1750082570085,0.75637,2643.7,2643.6,0.50950098]
[1750082570374,25.765,2643.7,2643.6,0.76207537]
[1750082570575,26.52137,2643.7,2643.6,0.51043471]
[1750082570766,26.52137,2643.7,2643.6,0.51045448]
[1750082570964,29.72917,2643.7,2643.6,0.00567537]
[1750082571178,27.77617,2643.7,2643.6,0.00567537]
[1750082571474,25.75767537,2644.1,2644.0,0.75628]
[1750082571681,25.75767537,2644.1,2643.7,4.4404]
[1750082571977,0.00567537,2644.1,2644.0,3.96408]
[1750082572180,0.00567537,2644.1,2644.0,4.46923136]
[1750082572181,25.74967537,2644.1,2644.0,4.46923136]
[1750082572374,25.74967537,2644.1,2644.0,3.96408]
[1750082572878,26.50593537,2644.1,2644.0,3.2078]
[1750082573179,26.50594537,2644.1,2643.7,3.2078]
[1750082573381,25.74967537,2644.1,2644.0,0.75629]
[1750082573678,0.00567537,2644.1,2644.0,0.75629]
[1750082574081,25.73267537,2644.1,2644.0,0.75629]
[1750082574470,0.00567537,2644.1,2644.0,0.75629]
[1750082574667,0.00567537,2644.1,2644.0,3.96409]
[1750082575876,0.06737406,2644.5,2644.4,0.75617]
[1750082575877,25.75637406,2644.5,2644.4,0.75617]
[1750082576072,0.06737406,2644.5,2644.4,3.96397]
[1750082578383,0.06737406,2644.5,2644.4,0.75617]
[1750082581075,0.06737406,2644.5,2644.1,3.2078]
[1750082581280,12.96434207,2644.3,2644.0,0.75628]
[1750082581586,3.2078,2644.3,2644.2,0.75623]
[1750082581878,25.679,2644.3,2643.8,3.2078]
[1750082582082,0.75623,2644.2,2644.0,0.75627]
[1750082582280,26.9758,2644.3,2644.1,0.75625]
[1750082582683,1.2968,2644.3,2644.1,0.75625]
[1750082582878,34.00423,2644.2,2644.0,0.75627]
[1750082583176,25.677,2644.1,2644.0,0.75627]
[1750082583381,0.75631,2644.0,2643.6,0.00567537]
[1750082583584,0.75638,2643.7,2643.6,0.00567537]
[1750082583889,0.75654,2643.2,2643.0,3.96437]
[1750082584179,35.43354207,2643.1,2642.6,3.96447]
[1750082584375,0.75666,2642.7,2642.4,0.75673]
[1750082584576,3.2078,2642.5,2641.8,4.28718488]
[1750082584785,3.2078,2642.5,2642.0,1.89216]
[1750082584786,0.00567537,2642.4,2642.0,1.89216]
[1750082584983,7.57667537,2642.4,2642.3,0.75678]
[1750082585183,33.25667537,2642.4,2641.9,0.00567537]
[1750082585486,33.25667537,2642.4,2642.3,0.75678]
[1750082585784,33.25667537,2642.4,2641.9,1.89786537]
[1750082586083,33.25667537,2642.4,2642.2,0.75679]
[1750082586381,0.00567537,2642.4,2642.3,0.75678]
[1750082587485,0.00567537,2642.4,2641.9,4.43337537]
[1750082587683,0.00567537,2642.4,2641.9,0.00567537]
[1750082587684,3.2078,2642.2,2641.9,0.00567537]
[1750082587877,1.2809,2642.1,2641.9,0.00567537]
[1750082588080,25.682,2642.0,2641.9,0.00567537]
[1750082588378,25.682,2642.0,2641.2,3.2078]
[1750082588578,5.0814,2641.9,2641.2,3.2078]
[1750082588786,3.2078,2641.6,2641.0,1.3047]
[1750082588981,3.2078,2641.6,2641.4,0.75702]
[1750082589182,25.682,2641.5,2641.4,0.75702]
[1750082589382,25.682,2641.5,2641.2,0.00567537]
[1750082589584,3.96486,2641.3,2641.2,0.00567537]
[1750082589888,1.89274,2641.2,2640.4,1.3459]
[1750082590083,3.96505,2640.7,2640.4,0.75731]
[1750082590387,3.96505,2640.7,2640.0,1.3459]
[1750082590388,33.253,2640.6,2640.0,1.3459]
[1750082590591,37.698,2640.6,2640.5,0.75729]
[1750082590886,37.709,2640.6,2640.5,0.75729]
[1750082591185,4.445,2640.6,2640.5,0.75729]
[1750082591383,0.00567537,2640.8,2640.5,0.75729]
[1750082591588,1.33987537,2640.8,2640.7,0.75723]
[1750082591790,33.26867537,2640.8,2640.6,0.75725]
[1750082591989,0.00567537,2640.8,2640.7,0.75723]
[1750082592187,33.26867537,2640.8,2640.7,0.75723]
[1750082593088,38.26867537,2640.8,2640.3,0.00567537]
[1750082593281,3.2078,2640.6,2640.3,0.76302537]
[1750082593489,1.3342,2640.5,2640.3,0.76302537]
[1750082593786,33.263,2640.4,2640.3,0.76302537]
[1750082593988,33.263,2640.4,2640.3,0.00567537]
[1750082594287,33.263,2640.4,2640.3,0.76302537]
[1750082594482,1.3342,2640.5,2640.4,0.75732]
[1750082594690,33.267,2640.5,2640.3,0.00567537]
[1750082594987,3.2078,2640.6,2640.4,0.75732]
[1750082595179,33.267,2640.5,2640.3,0.00567537]
[1750082595513,0.75733,2640.4,2640.3,0.00567537]
[1750082595693,2.03483,2640.4,2640.3,0.00567537]
[1750082596184,2.03483,2640.4,2639.4,3.2078]
[1750082596185,6.2775,2640.4,2639.4,3.2078]
[1750082596385,0.75751,2639.8,2639.5,0.75758]
[1750082596585,0.75757,2639.6,2639.2,1.98886]
[1750082596889,29.65534,2639.7,2639.3,0.75763]
[1750082597077,29.65534,2639.7,2639.2,1.2312]
[1750082597078,0.75763,2639.4,2639.0,3.96552]
[1750082597284,26.45265,2639.3,2639.0,3.2078]
[1750082597486,25.694,2639.2,2639.0,3.2078]
[1750082597684,26.45168,2639.2,2639.0,3.2078]
[1750082598190,0.00567537,2639.5,2639.0,3.2078]
[1750082598494,0.75745,2640.0,2639.4,3.96542]
[1750082598783,25.693,2639.9,2639.5,1.3162]
[1750082598983,3.2078,2639.7,2639.1,3.2078]
[1750082599178,3.2078,2639.7,2639.3,0.75764]
[1750082599385,3.2078,2639.7,2639.5,0.75757]
[1750082599692,25.693,2639.6,2639.5,0.75757]
[1750082599894,25.693,2639.6,2639.1,1.3162]
[1750082600092,25.697,2639.6,2639.5,0.75757]
[1750082600391,0.00567537,2639.9,2639.3,3.2078]
[1750082600585,7.52867537,2639.9,2639.8,0.7575]
[1750082600778,33.22567537,2639.9,2639.7,0.75751]
[1750082600983,33.22567537,2639.9,2639.8,0.7575]
[1750082601188,0.00567537,2639.9,2639.8,0.7575]
[1750082601392,7.52867537,2639.9,2639.8,0.7575]
[1750082601690,33.22467537,2639.9,2639.8,0.7575]
[1750082602078,25.70067537,2639.9,2639.8,3.9653]
[1750082602485,0.00567537,2639.9,2639.8,0.7575]
[1750082602685,0.00567537,2639.9,2639.8,3.9653]
[1750082603396,3.2078,2640.3,2640.2,0.75739]
[1750082603689,0.06737406,2640.4,2640.3,0.75736]
[1750082604488,0.06737406,2640.4,2639.9,6.38116]
[1750082604786,0.06737406,2640.4,2640.1,0.75742]
[1750082604787,3.2078,2640.2,2640.1,0.75742]
[1750082605387,7.59137406,2640.4,2640.3,0.75736]
[1750082605589,0.06737406,2640.4,2640.3,0.75736]
[1750082605782,25.76237406,2640.4,2640.3,0.75736]
[1750082605980,25.76337406,2640.4,2640.3,0.75736]
[1750082606292,0.06737406,2640.4,2640.3,0.75736]
[1750082607587,4.06e-06,2640.4,2640.3,8.96516]
[1750082607797,4.06e-06,2640.4,2640.3,10.24176]
[1750082608088,4.06e-06,2640.4,2640.3,5.24176]
[1750082608288,4.06e-06,2640.4,2640.3,0.75736]
[1750082608694,4.06e-06,2640.4,2640.3,5.24176]
[1750082609187,4.06e-06,2640.4,2640.3,2.03396]
[1750082609789,4.06e-06,2640.4,2640.3,0.75736]
[1750082611590,4.06e-06,2640.4,2640.3,2.07766]
[1750082612495,4.06e-06,2640.4,2640.3,0.75736]
[1750082613491,4.06e-06,2640.4,2640.3,2.03936]
[1750082614792,4.06e-06,2640.4,2640.3,0.75736]
[1750082614999,0.75734406,2640.4,2640.3,0.75736]
[1750082615186,4.06e-06,2640.4,2640.3,0.75736]
[1750082615494,33.21000406,2640.4,2640.3,0.75736]
[1750082615796,4.06e-06,2640.4,2640.3,0.75736]
[1750082618485,0.00567537,2640.6,2640.5,0.75731]
[1750082618486,9.43e-06,2640.6,2640.5,0.75731]
[1750082618686,9.43e-06,2640.6,2640.5,8.96511]
[1750082618893,9.43e-06,2640.6,2640.5,10.4065844]
[1750082619090,9.43e-06,2640.6,2640.5,11.0712844]
[1750082619286,9.43e-06,2640.6,2640.5,13.11802161]
[1750082619489,9.43e-06,2640.6,2640.5,10.95581]
[1750082621295,3.8395,2642.3,2640.5,13.34233353]
[1750082621598,3.8395,2642.3,2642.1,0.75684]
[1750082621797,3.8395,2642.3,2642.2,0.75683]
[1750082622095,3.2078,2642.3,2642.2,0.75683]
[1750082622695,19.25664207,2642.3,2640.9,1.46966572]
[1750082622901,3.2078,2641.2,2641.0,0.00565619]
[1750082623099,3.2078,2641.6,2640.7,1.89315]
[1750082623296,3.2078,2641.6,2641.5,0.76268619]
[1750082623497,3.2078,2641.6,2641.5,0.75703]
[1750082624600,19.25664207,2641.6,2641.3,0.00567537]
[1750082624794,4.5001,2641.6,2641.3,0.00567537]
[1750082624995,4.5001,2641.6,2641.5,0.75703]
[1750082625509,4.5001,2641.6,2641.3,0.00567537]
[1750082625510,0.75706,2641.4,2641.3,0.00567537]
[1750082625701,0.75715,2641.1,2640.9,0.75719]
[1750082625995,0.75715,2641.1,2640.7,1.89316]
[1750082625996,3.2078,2641.1,2640.7,1.89316]
[1750082626202,3.2078,2641.1,2641.0,0.75717]
[1750082627203,35.0798,2641.3,2641.2,0.75712]
[1750082627506,3.2078,2641.4,2641.3,0.75709]
[1750082627808,0.00567537,2641.8,2641.7,0.75697]
[1750082628007,0.00567537,2641.8,2641.7,3.97042619]
[1750082628499,7.523,2642.3,2642.2,0.75683]
[1750082628691,3.2078,2642.4,2641.8,0.00565619]
[1750082628900,1.8923,2641.9,2641.4,0.75705]
[1750082629202,3.2078,2641.5,2641.4,0.75705]
[1750082629399,2.5146,2641.8,2641.6,0.00565619]
[1750082629604,7.501,2641.9,2641.8,0.75695]
[1750082632202,28.87147537,2642.0,2641.9,0.75692]
[1750082632501,28.87147537,2642.0,2641.9,0.76257619]
[1750082632899,28.87147537,2642.0,2641.9,0.00565619]
[1750082633202,28.87147537,2642.0,2641.9,0.75692]
[1750082633514,1.2552,2642.5,2642.4,0.75678]
[1750082633799,34.4092,2642.5,2642.4,0.75678]
[1750082633999,1.2552,2642.5,2642.4,0.75678]
[1750082634203,26.1098,2642.7,2642.6,0.75672]
[1750082634204,56.056,2642.7,2642.6,0.75672]
[1750082634415,30.402,2642.7,2642.5,0.75673]
[1750082634705,1.2685,2642.6,2642.5,0.75673]
[1750082634898,22.902,2642.7,2642.6,0.75672]
[1750082635095,0.00567537,2642.9,2642.6,0.75672]
[1750082635096,0.00567537,2642.9,2642.8,0.75667]
[1750082635295,0.00567537,2642.9,2642.8,0.76232619]
[1750082635499,0.00567537,2642.9,2642.8,0.75667]
[1750082636202,0.00567537,2642.9,2642.8,0.76232619]
[1750082637002,0.00567537,2642.9,2642.8,0.75667]
[1750082637299,26.41032537,2642.9,2642.4,1.89195]
[1750082637506,3.2078,2642.8,2642.3,0.00567537]
[1750082637695,10.51332207,2642.4,2642.3,0.00567537]
[1750082637903,10.51332207,2642.4,2641.4,1.89264]
[1750082637904,0.75691,2642.0,2641.4,1.89264]
[1750082638097,3.2078,2641.8,2641.7,0.75698]
[1750082638600,3.2078,2641.8,2641.2,3.17811]
[1750082638802,4.4893,2641.8,2641.7,0.75698]
[1750082639000,1.2815,2641.8,2641.7,0.75698]
[1750082639197,1.2815,2641.8,2641.2,1.89848537]
[1750082639403,1.2815,2641.8,2641.7,0.75698]
[1750082640005,3.2078,2641.9,2641.8,0.75695]
[1750082640201,28.8538,2641.9,2641.8,0.75695]
[1750082640402,29.61072,2641.9,2641.7,0.75696]
[1750082640606,30.1421,2641.9,2641.8,0.75695]
[1750082641203,28.8538,2641.9,2641.8,0.75695]
[1750082642210,3.2078,2641.9,2641.8,0.75695]
[1750082642405,28.8518,2641.9,2641.8,0.75695]
[1750082642601,1.2883,2642.4,2641.8,0.00565619]
[1750082642602,3.2078,2642.2,2641.8,0.00565619]
[1750082642809,10.7068,2642.2,2642.1,0.75686]
[1750082643010,0.75688,2642.1,2641.9,0.76256619]
[1750082643207,38.40165,2642.2,2642.0,0.75688]
[1750082643509,25.644,2642.1,2641.7,3.2078]
[1750082643701,0.75689,2642.0,2641.9,0.7569]
[1750082643906,0.75689,2642.0,2641.8,0.76257619]
[1750082644110,0.75689,2642.0,2641.5,1.89255]
[1750082644111,2.05089,2642.0,2641.5,1.89255]
[1750082644308,1.294,2642.0,2641.9,0.75692]
[1750082644904,25.644,2642.1,2642.0,0.75689]
[1750082645110,3.2078,2642.2,2642.1,0.75686]
[1750082645305,36.3488,2642.2,2641.6,3.18191]
[1750082645605,36.3488,2642.2,2641.7,0.00565619]
[1750082645910,3.2078,2641.9,2641.5,0.00565619]
[1750082646102,28.8488,2641.8,2641.3,3.2078]
[1750082646305,0.75697,2641.7,2641.5,0.76266619]
[1750082646516,37.10475,2641.8,2641.6,0.75699]
[1750082646811,36.3478,2641.8,2641.3,3.2078]
[1750082647013,0.75699,2641.7,2641.5,0.76266619]
[1750082647216,36.3478,2641.8,2641.7,0.75697]
[1750082647405,33.14,2641.8,2641.7,0.75697]
[1750082647606,33.14,2641.8,2641.7,0.76262619]
[1750082647808,7.56637406,2641.9,2641.8,0.75695]
[1750082648005,33.20637406,2641.9,2641.8,0.75695]
[1750082648415,33.20637406,2641.9,2641.7,0.75697]
[1750082648618,0.75695,2641.8,2641.7,0.75697]
[1750082648819,37.17110406,2641.9,2641.8,0.75694]
[1750082649310,0.75702,2641.6,2641.3,4.4273]
[1750082649509,25.639,2641.5,2641.4,0.00565619]
[1750082649706,33.138,2641.5,2641.2,0.00567537]
[1750082649910,33.138,2641.5,2641.2,0.01133156]
[1750082650217,26.39506,2641.4,2641.3,0.76272619]
[1750082650416,26.39506,2641.4,2641.2,0.76277537]
[1750082650417,0.75709,2641.3,2641.2,0.76277537]
[1750082650611,0.75709,2641.3,2641.2,0.00567537]
[1750082650812,3.96489,2641.3,2641.2,0.00567537]
[1750082651016,5.28999,2641.3,2641.2,0.00567537]
[1750082651317,5.28999,2641.3,2640.9,0.7572]
[1750082651318,0.75719,2641.0,2640.9,0.7572]
[1750082651514,25.638,2641.0,2640.9,0.7572]
[1750082651816,26.39517,2641.0,2640.9,0.7572]
[1750082652322,25.638,2641.0,2640.9,0.7572]
[1750082652615,25.638,2641.0,2640.9,0.76285619]
[1750082652810,0.75712,2641.2,2641.1,0.75715]
[1750082653009,0.00567537,2641.5,2641.1,0.00565619]
[1750082653212,7.50467537,2641.5,2641.4,0.75706]
[1750082653412,33.14067537,2641.5,2641.4,0.75706]
[1750082653607,0.00567537,2641.5,2641.4,0.76271619]
[1750082653813,33.14067537,2641.5,2641.3,0.75706]
[1750082654016,33.89772537,2641.5,2641.4,0.75706]
[1750082654418,33.14067537,2641.5,2641.4,0.75706]
[1750082654619,0.00567537,2641.5,2641.4,0.75706]
[1750082654820,0.76270537,2641.5,2641.4,0.75706]
[1750082655021,33.89772537,2641.5,2641.4,0.75706]
[1750082655320,0.00567537,2641.5,2641.4,0.76271619]
[1750082655528,25.64067537,2641.5,2641.4,0.76271619]
[1750082656022,25.64067537,2641.5,2641.0,3.2078]
[1750082656023,0.75714,2641.1,2641.0,0.75716]
[1750082656222,0.00567537,2641.5,2641.3,0.00565619]
[1750082656522,25.63867537,2641.5,2641.4,0.76271619]
[1750082656718,0.00567537,2641.5,2641.4,0.76271619]
[1750082656919,0.00567537,2641.5,2641.4,2.06361619]
[1750082657315,0.76270537,2641.5,2641.3,2.06488]
[1750082657521,0.76270537,2641.5,2641.4,0.00565619]
[1750082657721,0.75709,2641.3,2641.2,0.75709]
[1750082657921,25.63867537,2641.5,2641.4,0.75706]
[1750082658116,25.63867537,2641.5,2641.2,0.00565619]
[1750082658320,0.75706,2641.4,2641.3,0.75707]
[1750082658727,26.39571537,2641.5,2641.3,0.75707]
[1750082658942,25.63867537,2641.5,2641.4,0.75706]
[1750082659119,0.00567537,2641.5,2641.4,0.75706]
[1750082659324,0.75709,2641.3,2641.1,0.75713]
[1750082659629,3.96489,2641.3,2641.2,0.76276619]
[1750082659931,28.8378,2641.3,2641.2,0.76276619]
[1750082660122,3.2078,2641.3,2641.2,0.76276619]
[1750082660324,28.8378,2641.3,2641.2,0.76276619]
[1750082662520,7.55604943,2641.5,2641.4,0.75705]
[1750082662723,33.18304943,2641.5,2641.1,3.21374]
[1750082662928,0.75706,2641.4,2641.3,0.75706]
[1750082663124,0.75708,2641.3,2641.2,0.00565619]
[1750082663316,0.75715,2641.1,2641.0,0.75715]
[1750082663521,33.109,2641.1,2640.8,0.00565619]
[1750082663830,33.86616,2641.1,2641.0,0.75717]
[1750082664125,0.75722,2640.9,2640.8,0.75721]
[1750082664424,0.75722,2640.9,2640.8,0.75722]
[1750082664425,3.96502,2640.9,2640.8,0.75722]
[1750082664628,0.75722,2640.8,2640.7,0.00567537]
[1750082664824,33.94398389,2640.8,2640.7,0.76292537]
[1750082665029,25.624,2640.8,2640.7,0.76292537]
[1750082665529,26.38122,2640.8,2640.7,0.76292537]
[1750082665731,25.624,2640.8,2640.7,0.76292537]
[1750082666026,26.38122,2640.8,2640.7,0.00567537]
[1750082666429,26.38122,2640.8,2640.7,0.76292537]
[1750082666726,26.38122,2640.8,2640.7,0.00567537]
[1750082666929,3.2078,2640.9,2640.8,0.75722]
[1750082667129,7.483,2641.1,2641.0,0.75716]
[1750082667327,0.07304943,2641.5,2641.4,0.75705]
[1750082667529,25.69504943,2641.5,2641.4,0.76270619]
[1750082667833,0.75706,2641.4,2641.3,0.75706]
[1750082668231,25.69504943,2641.5,2641.4,0.75705]
[1750082668819,0.07304943,2641.5,2641.4,0.75705]
[1750082669029,33.17604943,2641.5,2641.4,0.76270619]
[1750082669233,0.07304943,2641.5,2641.4,0.76270619]
[1750082669524,25.69204943,2641.5,2641.4,0.76270619]
[1750082670122,0.07304943,2641.5,2641.4,0.76270619]
[1750082670433,25.69104943,2641.5,2641.4,0.76270619]
[1750082671731,26.44806943,2641.5,2641.4,0.00565619]
[1750082671929,0.83006943,2641.5,2641.4,0.00565619]
[1750082672226,0.07304943,2641.5,2641.4,0.75705]
[1750082672421,25.68704943,2641.5,2641.4,0.76270619]
[1750082674231,0.07304943,2641.5,2641.4,0.75705]
[1750082674530,0.7571,2641.3,2640.9,1.74718155]
[1750082674741,37.05892,2641.2,2641.1,0.75712]
[1750082675232,36.3018,2641.2,2640.7,1.77775692]
[1750082675534,3.96501,2640.9,2640.8,0.00565619]
[1750082675728,0.75722,2640.8,2640.7,0.00567537]
[1750082675930,9.57972,2640.8,2640.7,0.00567537]
[1750082676431,3.2078,2640.9,2640.8,0.75722]
[1750082676737,0.75722,2640.8,2640.7,0.00567537]
[1750082677734,2.06492,2640.8,2640.7,0.00567537]
[1750082677937,35.15592,2640.8,2640.7,0.00567537]
[1750082678530,3.96502,2640.9,2640.7,0.00567537]
[1750082678728,33.84722,2640.8,2640.7,0.00567537]
[1750082679536,2.06492,2640.8,2640.7,0.00567537]
[1750082679730,35.15292,2640.8,2640.7,0.00567537]
[1750082680132,2.06492,2640.8,2640.7,0.00567537]
[1750082680334,35.15192,2640.8,2640.7,0.00567537]
[1750082680537,2.06492,2640.8,2640.7,0.76292537]
[1750082680836,40.15292,2640.8,2640.7,0.00567537]
[1750082681235,40.15392,2640.8,2640.7,0.00567537]
[1750082681434,35.15392,2640.8,2640.7,0.00567537]
[1750082682033,40.15392,2640.8,2640.7,0.00567537]
[1750082682234,0.75736,2640.4,2640.3,0.75735]
[1750082682430,45.37214389,2640.4,2640.3,0.75735]
[1750082682927,45.37214389,2640.4,2639.9,0.75745]
[1750082682928,0.75748,2640.0,2639.9,0.75745]
[1750082683135,25.602,2640.0,2639.9,0.75745]
[1750082683335,25.602,2640.0,2639.9,0.76310619]
[1750082683641,26.35945,2640.0,2639.9,0.76310619]
[1750082683827,0.75748,2639.9,2639.8,0.75749]
[1750082684030,42.16446389,2640.0,2639.9,0.75748]
[1750082684439,33.087,2640.0,2639.9,0.75748]
[1750082684632,0.7575,2639.9,2639.8,0.75749]
[1750082685034,0.75751,2639.8,2639.7,0.76319537]
[1750082685234,3.96531,2639.8,2639.7,0.00567537]
[1750082685438,3.2078,2639.8,2639.7,0.76321537]
[1750082685946,28.8068,2639.8,2639.7,0.76887156]
[1750082686943,28.8088,2639.8,2639.7,0.76887156]
[1750082687149,0.00567537,2640.1,2640.0,0.75746]
[1750082687444,10.6928,2640.8,2640.7,0.75725]
[1750082687634,36.2918,2640.8,2640.7,0.75725]
[1750082688337,44.61178389,2640.8,2640.7,0.75725]
[1750082688541,36.2898,2640.8,2640.7,0.76290619]
[1750082689145,0.00567537,2641.0,2640.9,0.7572]
[1750082689337,33.08667537,2641.0,2640.9,0.76285619]
[1750082689648,0.00567537,2641.0,2640.9,0.76285619]
[1750082689939,7.46267537,2641.0,2640.9,0.76285619]
[1750082690237,33.05567537,2641.0,2640.9,0.76285619]
[1750082690940,0.00567537,2641.0,2640.9,0.76285619]
[1750082691147,25.59667537,2641.0,2640.9,0.76285619]
[1750082691446,0.00567537,2641.0,2640.9,2.03645619]
[1750082691745,25.59667537,2641.0,2640.9,2.03645619]
[1750082693342,3.2078,2641.6,2640.9,1.27925619]
[1750082693546,3.2078,2642.0,2641.6,0.00565619]
[1750082693851,25.584,2641.9,2641.8,0.75691]
[1750082694947,3.2078,2642.0,2641.9,0.75691]
[1750082695244,7.46267537,2642.1,2642.0,0.75688]
[1750082695446,33.04367537,2642.1,2642.0,0.76253619]
[1750082695641,36.25147537,2642.1,2641.8,1.2347]
[1750082695836,36.25147537,2642.1,2641.7,0.75695]
[1750082695837,0.75695,2641.8,2641.7,0.75695]
[1750082696048,0.75697,2641.7,2641.6,0.76265537]
[1750082696545,15.77598389,2641.7,2641.3,0.75706]
[1750082696737,0.75709,2641.3,2641.2,0.75709]
[1750082696942,26.33209,2641.3,2641.2,0.76274619]
[1750082697142,25.575,2641.3,2641.1,0.75712]
[1750082697347,10.6638,2641.2,2640.7,1.89314]
[1750082697642,10.6638,2641.2,2641.1,0.75714]
[1750082698244,25.571,2641.3,2641.2,0.75711]
[1750082698444,25.571,2641.6,2641.5,0.75703]
[1750082698648,25.571,2641.6,2641.5,0.76268619]
[1750082698846,8.21293,2641.9,2641.8,0.75694]
[1750082699051,33.027,2641.9,2641.3,1.8927]
[1750082699242,11.52778389,2641.8,2641.4,0.75704]
[1750082699453,9.07703389,2641.5,2641.3,0.75707]
[1750082699648,28.7768,2641.4,2640.9,1.2869]
[1750082699950,0.75712,2641.2,2641.1,0.75712]
[1750082700252,0.7571,2641.3,2641.2,0.75711]
[1750082700460,3.2078,2641.7,2641.3,0.00565619]
[1750082700749,8.32565926,2642.1,2641.3,0.00565619]
[1750082700750,3.2078,2642.0,2641.9,0.75691]
[1750082700947,7.46167537,2642.1,2641.9,0.00565619]
[1750082700948,25.57167537,2642.1,2641.9,0.00565619]
[1750082701155,25.57167537,2642.1,2642.0,0.76253619]
[1750082701453,0.00567537,2642.1,2642.0,0.76253619]
[1750082701753,25.56967537,2642.1,2642.0,0.76253619]
[1750082702449,0.00567537,2642.1,2642.0,0.76253619]
[1750082702644,25.56967537,2642.1,2642.0,0.76253619]
[1750082703152,25.56467537,2642.1,2642.0,0.76253619]
[1750082703654,0.00567537,2642.1,2642.0,0.76253619]
[1750082706250,0.00567537,2642.1,2641.8,3.2078]
[1750082706445,0.82425406,2642.0,2641.9,0.00565619]
[1750082706650,0.06737406,2642.0,2641.9,0.76256619]
[1750082707052,0.82425406,2642.0,2641.9,0.76256619]
[1750082707252,0.75694,2641.8,2641.5,3.2078]
[1750082707453,28.7558,2641.7,2641.6,0.76263619]
[1750082707653,29.51277,2641.7,2641.6,0.00565619]
[1750082707852,29.51277,2641.7,2641.5,0.75701]
[1750082707853,0.75701,2641.6,2641.5,0.75701]
[1750082708155,30.77959,2641.7,2641.6,0.76265619]
[1750082708349,26.8148,2641.7,2641.6,0.757]
[1750082708655,29.51279,2641.7,2641.5,0.757]
[1750082708859,7.454,2641.6,2641.5,0.757]
[1750082709051,8.211,2641.6,2641.5,0.757]
[1750082709251,7.454,2641.6,2641.5,0.757]
[1750082709554,7.454,2641.6,2641.4,0.75703]
[1750082709749,0.75703,2641.5,2641.4,0.00565619]
[1750082710052,7.454,2641.6,2641.5,0.75703]
[1750082710351,8.21101,2641.6,2641.5,0.75703]
[1750082711151,7.454,2641.6,2641.5,0.75703]
[1750082711451,33.751,2641.6,2641.5,0.00565619]
[1750082711652,0.75702,2641.5,2641.4,0.75704]
[1750082712163,33.75102,2641.6,2641.5,0.75702]
[1750082712459,33.751,2641.6,2641.5,0.75702]
[1750082712649,0.75706,2641.4,2641.3,0.75707]
[1750082713153,0.75706,2641.4,2641.3,0.76272619]
[1750082713460,33.20375369,2641.6,2641.5,0.75703]
[1750082713757,33.20375369,2641.6,2640.9,3.2078]
[1750082713758,0.75717,2641.0,2640.9,3.2078]
[1750082713947,0.75717,2641.0,2640.7,1.25627537]
[1750082713948,0.75723,2640.8,2640.7,0.00567537]
[1750082714554,2.5544,2640.9,2640.1,1.2977]
[1750082714555,1.89322,2640.6,2640.1,0.75743]
[1750082714760,0.75738,2640.3,2640.2,0.00565619]
[1750082714948,3.41755369,2640.4,2640.2,0.00565619]
[1750082715146,3.41755369,2640.4,2640.0,0.6243]
[1750082715346,0.75738,2640.3,2640.2,0.00565619]
[1750082715562,0.75738,2640.3,2640.1,0.75743]
[1750082715751,3.41755369,2640.4,2640.2,0.76305619]
[1750082715954,25.73675369,2640.3,2640.2,0.7574]